bitfinex/quotes_BTCUSD_20250326
["timestamp","ask_amount","ask_price","bid_price","bid_amount"]
[1743021332199,0.01,87525.0,87524.0,0.239933]
[1743021334282,0.01,87525.0,87524.0,0.322233]
[1743021335910,0.01,87525.0,87524.0,0.323233]
[1743021336110,0.02789738,87525.0,87524.0,0.323233]
[1743021336989,0.02789738,87525.0,87524.0,0.33777385]
[1743021340552,0.02789738,87525.0,87524.0,0.60880911]
[1743021341406,0.02789738,87525.0,87524.0,0.60780911]
[1743021342157,0.02789738,87525.0,87524.0,0.61080911]
[1743021342788,0.01,87525.0,87524.0,0.61080911]
[1743021343186,0.01,87525.0,87524.0,0.61180911]
[1743021343887,0.01,87525.0,87524.0,0.61080911]
[1743021344103,0.01,87525.0,87524.0,0.61480911]
[1743021344463,0.01,87525.0,87524.0,0.50553149]
[1743021345047,0.01,87525.0,87524.0,0.50587049]
[1743021346244,0.01,87525.0,87524.0,0.50187049]
[1743021346456,0.01,87525.0,87524.0,0.79887049]
[1743021346684,0.01,87525.0,87524.0,0.80987049]
[1743021346860,0.01,87525.0,87524.0,0.92412813]
[1743021350548,0.01,87525.0,87524.0,0.80987049]
[1743021352430,0.01789505,87535.0,87534.0,0.25444685]
[1743021352640,0.01789505,87535.0,87534.0,0.39044685]
[1743021354046,5e-08,87535.0,87534.0,0.58190449]
[1743021354259,0.0001695,87543.0,87542.0,0.239884]
[1743021354460,0.0001695,87543.0,87542.0,0.833244]
[1743021355427,0.0001695,87543.0,87542.0,0.84822239]
[1743021355629,0.0001695,87543.0,87542.0,0.85222239]
[1743021356358,0.0001695,87543.0,87542.0,0.89862239]
[1743021356481,0.0001695,87543.0,87542.0,1.13113767]
[1743021357405,0.0001695,87543.0,87542.0,1.14258738]
[1743021358007,5e-07,87543.0,87542.0,1.22428738]
[1743021358803,5e-07,87543.0,87542.0,1.24683563]
[1743021362045,5e-07,87543.0,87542.0,1.24671911]
[1743021365390,5e-07,87543.0,87542.0,1.38163911]
[1743021366544,5e-07,87543.0,87542.0,1.68163911]
[1743021367154,5e-07,87543.0,87542.0,1.67763911]
[1743021367353,0.0808213,87555.0,87554.0,0.667051]
[1743021367554,6.2e-07,87559.0,87558.0,0.25438185]
[1743021367768,6.2e-07,87559.0,87558.0,0.50351949]
[1743021368484,6.2e-07,87559.0,87558.0,0.44703949]
[1743021368716,6.2e-07,87559.0,87558.0,0.58187949]
[1743021369305,6.2e-07,87559.0,87558.0,0.69613713]
[1743021369709,6.2e-07,87559.0,87558.0,0.70013713]
[1743021369912,6.2e-07,87559.0,87558.0,0.58587949]
[1743021370664,6.2e-07,87559.0,87558.0,0.59087949]
[1743021371939,6.2e-07,87559.0,87558.0,0.45603949]
[1743021372238,6.2e-07,87559.0,87558.0,0.59055949]
[1743021372442,6.2e-07,87559.0,87558.0,1.18375949]
[1743021373026,6.2e-07,87559.0,87558.0,1.20618429]
[1743021373486,6.2e-07,87559.0,87558.0,1.20606429]
[1743021373692,6.2e-07,87559.0,87558.0,0.8530448]
[1743021373894,0.23983762,87559.0,87558.0,0.009]
[1743021374024,0.34495353,87559.0,87558.0,0.009]
[1743021374592,0.28783762,87559.0,87558.0,0.004]
[1743021374941,0.228443,87549.0,87542.0,0.00077654]
[1743021375162,0.239878,87544.0,87543.0,0.1344]
[1743021375363,0.239878,87544.0,87542.0,0.00077654]
[1743021375608,0.00231788,87543.0,87542.0,0.00077654]
[1743021375806,0.08221788,87543.0,87542.0,0.00077654]
[1743021376006,0.0799,87543.0,87542.0,0.00077654]
[1743021377879,0.0799,87543.0,87542.0,0.00277654]
[1743021378169,0.0799,87543.0,87542.0,0.00577654]
[1743021380935,0.308359,87543.0,87542.0,0.00577654]
[1743021381155,0.0799,87543.0,87542.0,0.00577654]
[1743021381679,0.0799,87543.0,87542.0,0.00077654]
[1743021382121,0.39124238,87543.0,87542.0,0.00377654]
[1743021382325,0.75146438,87543.0,87542.0,0.00377654]
[1743021383285,1.17376438,87543.0,87542.0,5.4e-07]
[1743021383487,0.239931,87525.0,87514.0,0.0003386]
[1743021383686,0.370631,87525.0,87514.0,0.0003386]
[1743021384983,0.670631,87525.0,87514.0,0.0003386]
[1743021386660,0.6885305,87525.0,87514.0,0.0003386]
[1743021386901,0.4485995,87525.0,87515.0,0.011426]
[1743021387100,0.4485995,87525.0,87518.0,0.228523]
[1743021387237,0.4485995,87525.0,87518.0,0.228522]
[1743021387418,0.4485995,87525.0,87517.0,0.228525]
[1743021388108,0.3997995,87525.0,87515.0,0.22853]
[1743021388243,0.4112245,87525.0,87514.0,0.0003386]
[1743021388449,0.52548214,87525.0,87514.0,0.2288716]
[1743021389078,0.4112245,87525.0,87514.0,0.2288716]
[1743021389442,0.6397305,87525.0,87514.0,0.2288716]
[1743021389818,0.6397305,87525.0,87514.0,0.0003386]
[1743021392495,0.6417305,87525.0,87514.0,0.0003386]
[1743021393131,0.623831,87525.0,87514.0,0.0003386]
[1743021396134,0.64173186,87525.0,87514.0,0.0003386]
[1743021396342,0.7559895,87525.0,87514.0,0.0003386]
[1743021397171,0.64173186,87525.0,87514.0,0.0003386]
[1743021402859,0.55983186,87525.0,87514.0,0.0003386]
[1743021403062,0.541931,87525.0,87514.0,0.0003386]
[1743021406344,0.55557418,87525.0,87514.0,0.0003386]
[1743021413453,0.537673,87525.0,87514.0,0.0003386]
[1743021416498,0.55557398,87525.0,87514.0,0.0003386]
[1743021417290,0.55574348,87525.0,87514.0,0.0003386]
[1743021419045,0.67000112,87525.0,87514.0,0.0003386]
[1743021419575,0.55574348,87525.0,87514.0,0.0003386]
[1743021422919,0.5378425,87525.0,87514.0,0.0003386]
[1743021425832,0.55574371,87525.0,87514.0,0.0003386]
[1743021433738,0.5378425,87525.0,87514.0,0.0003386]
[1743021434493,0.0021695,87525.0,87519.0,0.228858]
[1743021434672,0.0021695,87525.0,87524.0,0.3963317]
[1743021435046,0.0021695,87525.0,87524.0,1.13014809]
[1743021435878,0.0021695,87525.0,87524.0,1.23104839]
[1743021436280,0.0001695,87525.0,87524.0,1.23104839]
[1743021436478,0.0001695,87525.0,87524.0,1.23204839]
[1743021436908,0.0001695,87525.0,87524.0,1.24074403]
[1743021437039,0.0001695,87525.0,87524.0,1.24474403]
[1743021437445,0.0001695,87525.0,87524.0,1.24974403]
[1743021439827,3.012e-05,87525.0,87524.0,1.24974403]
[1743021448528,3.012e-05,87525.0,87524.0,1.00392639]
[1743021448938,0.22853612,87525.0,87524.0,0.603899]
[1743021449171,0.28794873,87525.0,87524.0,0.010339]
[1743021450134,0.28794873,87525.0,87524.0,0.005339]
[1743021450336,0.28794873,87525.0,87524.0,0.000339]
[1743021450568,0.28894873,87525.0,87524.0,0.000339]
[1743021450741,0.58894873,87525.0,87524.0,0.000339]
[1743021450952,0.58794873,87525.0,87524.0,0.000339]
[1743021451161,0.539944,87520.0,87519.0,0.000339]
[1743021451519,0.65420164,87520.0,87519.0,0.000339]
[1743021452165,0.539944,87520.0,87519.0,0.000339]
[1743021456660,0.55784498,87520.0,87519.0,0.000339]
[1743021459159,0.63974498,87520.0,87519.0,0.000339]
[1743021460291,0.64074498,87520.0,87519.0,0.000339]
[1743021462800,0.622844,87520.0,87519.0,0.000339]
[1743021463218,0.73710164,87520.0,87519.0,0.000339]
[1743021465785,0.75500392,87520.0,87519.0,0.000339]
[1743021466681,0.55884628,87520.0,87519.0,0.000339]
[1743021472540,0.239958,87515.0,87514.0,0.0003386]
[1743021473759,0.239958,87515.0,87514.0,0.00077746]
[1743021475827,0.25786006,87515.0,87514.0,0.00077746]
[1743021481224,0.239958,87515.0,87514.0,0.00077746]
[1743021488540,0.33481345,87515.0,87514.0,0.00077746]
[1743021489170,0.239958,87515.0,87514.0,0.00077746]
[1743021491266,0.25785932,87515.0,87514.0,0.00077746]
[1743021492820,0.239958,87515.0,87514.0,0.00077746]
[1743021495789,0.25785986,87515.0,87514.0,0.00077746]
[1743021502818,0.239958,87515.0,87514.0,0.00077746]
[1743021505931,0.25785998,87515.0,87514.0,0.00077746]
[1743021510430,0.35450563,87515.0,87514.0,0.00077746]
[1743021510835,0.25785998,87515.0,87514.0,0.00077746]
[1743021511969,0.64085998,87515.0,87514.0,0.00077746]
[1743021512209,0.622958,87515.0,87514.0,0.00077746]
[1743021512407,0.539958,87515.0,87514.0,0.00077746]
[1743021512764,0.2286985,87519.0,87514.0,0.00077746]
[1743021512972,0.0001695,87519.0,87514.0,0.00077746]
[1743021513190,0.228529,87516.0,87515.0,0.0461]
[1743021513660,0.0001695,87519.0,87518.0,0.228524]
[1743021513811,0.0001695,87519.0,87518.0,0.23895]
[1743021513992,0.0001695,87519.0,87518.0,0.25009548]
[1743021515512,0.01806887,87519.0,87518.0,0.25009548]
[1743021516922,0.01806887,87519.0,87518.0,0.25209548]
[1743021517304,0.01806887,87519.0,87518.0,0.57082866]
[1743021517508,0.01806887,87519.0,87518.0,0.87769397]
[1743021517710,0.01806887,87519.0,87518.0,0.92749397]
[1743021518943,0.01806887,87519.0,87518.0,0.92649397]
[1743021519294,0.01806887,87519.0,87518.0,0.93249397]
[1743021519522,0.01806887,87519.0,87518.0,0.93149397]
[1743021520075,0.01806887,87519.0,87518.0,0.93749397]
[1743021520630,0.01806887,87519.0,87518.0,0.93149397]
[1743021521144,0.01806887,87519.0,87518.0,1.05175161]
[1743021522324,0.01806887,87519.0,87518.0,0.93749397]
[1743021522711,0.0001695,87519.0,87518.0,0.93749397]
[1743021523869,0.0001695,87519.0,87518.0,1.06809397]
[1743021529091,0.0001695,87519.0,87518.0,0.93749397]
[1743021529325,0.0001695,87519.0,87518.0,1.06805397]
[1743021530295,0.0001695,87519.0,87518.0,1.05605397]
[1743021530725,0.0001695,87519.0,87518.0,1.06805397]
[1743021531325,0.0001695,87519.0,87518.0,1.66145397]
[1743021532423,0.0001695,87519.0,87518.0,1.53089397]
[1743021532623,0.0001695,87519.0,87518.0,1.58115397]
[1743021533391,0.0001695,87519.0,87518.0,1.46689633]
[1743021533612,0.0001695,87519.0,87518.0,1.03304548]
[1743021533824,0.26300491,87519.0,87518.0,0.5994]
[1743021534030,0.02305791,87519.0,87518.0,0.5994]
[1743021534238,0.26300491,87519.0,87518.0,0.5994]
[1743021534441,0.26300491,87519.0,87518.0,0.605739]
[1743021534644,0.2401165,87519.0,87518.0,0.593739]
[1743021534850,0.0001695,87519.0,87518.0,0.593739]
[1743021535052,0.0001695,87519.0,87518.0,0.833263]
[1743021535804,0.01806833,87519.0,87518.0,0.833263]
[1743021536370,0.01806833,87519.0,87518.0,0.599739]
[1743021536585,0.01806833,87519.0,87518.0,0.822263]
[1743021536899,0.01806833,87519.0,87518.0,0.827263]
[1743021537127,0.01806833,87519.0,87518.0,0.598739]
[1743021537457,0.01806833,87519.0,87518.0,0.827263]
[1743021539100,0.01806833,87519.0,87518.0,0.838689]
[1743021539427,0.01806833,87519.0,87518.0,0.827263]
[1743021539648,0.01806833,87519.0,87518.0,0.838689]
[1743021540010,0.01806833,87519.0,87518.0,0.827263]
[1743021543097,0.0001695,87519.0,87518.0,0.827263]
[1743021544288,0.07332991,87519.0,87518.0,0.827263]
[1743021544494,0.07332991,87519.0,87518.0,0.598739]
[1743021544718,0.0001695,87519.0,87518.0,0.827263]
[1743021546187,0.0001695,87519.0,87518.0,0.598739]
[1743021546484,0.0001695,87519.0,87518.0,0.93152985]
[1743021547434,0.01806826,87519.0,87518.0,0.93152985]
[1743021548464,0.01806826,87519.0,87518.0,0.95412829]
[1743021548660,0.01806826,87519.0,87518.0,0.93152985]
[1743021548876,0.01806826,87519.0,87518.0,0.598739]
[1743021549081,0.01806826,87519.0,87518.0,0.957823]
[1743021549468,0.01806826,87519.0,87518.0,0.729299]
[1743021549675,0.01806826,87519.0,87518.0,0.957823]
[1743021552455,0.01806826,87519.0,87518.0,0.827263]
[1743021552859,0.0001695,87519.0,87518.0,0.827263]
[1743021554642,0.0001695,87519.0,87518.0,0.598739]
[1743021554796,0.2286905,87519.0,87518.0,0.005339]
[1743021555003,0.55139749,87519.0,87518.0,0.005339]
[1743021555208,0.62959749,87519.0,87518.0,0.005339]
[1743021556091,0.62959749,87519.0,87518.0,0.000339]
[1743021556298,0.6183165,87519.0,87518.0,0.001339]
[1743021557106,0.63621856,87519.0,87518.0,0.001339]
[1743021557808,0.63621856,87519.0,87518.0,0.002339]
[1743021558003,0.55801856,87519.0,87518.0,0.002339]
[1743021558458,0.25801856,87519.0,87518.0,0.002339]
[1743021562686,0.2401165,87519.0,87518.0,0.002339]
[1743021565710,0.25801733,87519.0,87518.0,0.002339]
[1743021565938,0.35696303,87519.0,87518.0,0.002339]
[1743021566186,0.25801733,87519.0,87518.0,0.002339]
[1743021566484,0.01807033,87519.0,87518.0,0.242289]
[1743021568623,0.01807033,87519.0,87518.0,0.33572985]
[1743021568814,0.01807033,87519.0,87518.0,0.49588749]
[1743021569655,0.01807033,87519.0,87518.0,0.49488749]
[1743021569857,0.01807033,87519.0,87518.0,0.49788749]
[1743021570878,0.01807033,87519.0,87518.0,0.52133074]
[1743021571294,0.01807033,87519.0,87518.0,0.52033074]
[1743021571645,0.01807033,87519.0,87518.0,1.23644231]
[1743021571845,0.01807033,87519.0,87518.0,1.23744231]
[1743021571846,0.0001695,87519.0,87518.0,1.23744231]
[1743021572041,0.0001695,87519.0,87518.0,1.24144231]
[1743021572192,0.0001695,87519.0,87518.0,1.23744231]
[1743021572605,0.0001695,87519.0,87518.0,1.24244231]
[1743021573709,0.0001695,87519.0,87518.0,1.12818467]
[1743021586593,0.0001695,87519.0,87518.0,1.54468467]
[1743021588524,2.4e-07,87524.0,87523.0,0.239936]
[1743021588746,3.012e-05,87525.0,87524.0,0.539933]
[1743021588905,3.012e-05,87525.0,87524.0,0.90868913]
[1743021589110,3.012e-05,87525.0,87524.0,1.33018913]
[1743021589313,3.012e-05,87525.0,87524.0,1.35518913]
[1743021589867,0.0001695,87542.0,87541.0,0.365587]
[1743021590125,0.0001695,87542.0,87541.0,0.62486549]
[1743021590272,0.0001695,87542.0,87541.0,0.73533024]
[1743021590479,7.2e-07,87547.0,87546.0,0.239873]
[1743021590653,0.0001695,87561.0,87546.0,0.239873]
[1743021590654,0.0001695,87561.0,87558.0,0.239841]
[1743021590868,0.0001695,87561.0,87558.0,0.97822185]
[1743021591048,0.0001695,87561.0,87558.0,1.02018036]
[1743021592899,0.0001695,87561.0,87558.0,1.02318036]
[1743021593317,0.0001695,87561.0,87558.0,1.03185364]
[1743021593561,0.0001695,87561.0,87558.0,1.03585364]
[1743021594174,0.0001695,87561.0,87558.0,1.02718036]
[1743021594575,0.0001695,87561.0,87558.0,0.98566071]
[1743021595908,0.0001695,87561.0,87558.0,0.60079886]
[1743021596116,0.24000702,87559.0,87558.0,0.60079886]
[1743021597290,0.25789912,87559.0,87558.0,0.60079886]
[1743021597709,0.25789912,87559.0,87558.0,0.59779886]
[1743021597912,0.25789912,87559.0,87558.0,0.59379886]
[1743021598253,0.25789912,87559.0,87558.0,0.59479886]
[1743021599402,0.25789912,87559.0,87558.0,0.59579886]
[1743021602764,0.24000702,87559.0,87558.0,0.59579886]
[1743021603897,0.24000702,87559.0,87558.0,0.00243886]
[1743021604705,0.34866277,87559.0,87558.0,0.00243886]
[1743021604906,0.64866277,87559.0,87558.0,0.00243886]
[1743021605151,0.65866277,87559.0,87558.0,0.00243886]
[1743021605719,0.67655744,87559.0,87558.0,0.00143886]
[1743021606295,0.56790169,87559.0,87558.0,0.00143886]
[1743021607215,0.56790169,87559.0,87558.0,0.00043886]
[1743021607461,0.56890169,87559.0,87558.0,0.00043886]
[1743021608194,0.56790169,87559.0,87558.0,0.00043886]
[1743021608387,0.64720169,87559.0,87558.0,8.6e-07]
[1743021608593,0.76245933,87559.0,87558.0,8.6e-07]
[1743021609182,0.81155933,87559.0,87558.0,8.6e-07]
[1743021611006,0.69730169,87559.0,87558.0,8.6e-07]
[1743021611160,0.72036317,87559.0,87558.0,8.6e-07]
[1743021612838,0.7024685,87559.0,87558.0,8.6e-07]
[1743021617472,0.7203646,87559.0,87558.0,8.6e-07]
[1743021618547,0.7203646,87559.0,87542.0,0.000339]
[1743021618548,0.665681,87543.0,87542.0,8.6e-07]
[1743021618769,0.665681,87543.0,87542.0,0.00044426]
[1743021618770,0.7345335,87543.0,87542.0,0.00044426]
[1743021618943,0.7345335,87543.0,87542.0,2.6e-07]
[1743021619506,0.75243209,87543.0,87542.0,2.6e-07]
[1743021619927,0.75343209,87543.0,87542.0,2.6e-07]
[1743021620336,0.77642128,87543.0,87542.0,2.6e-07]
[1743021620534,0.78142128,87543.0,87542.0,2.6e-07]
[1743021620747,0.78600228,87543.0,87542.0,2.6e-07]
[1743021623536,0.79452278,87543.0,87542.0,2.6e-07]
[1743021625938,1.21182278,87543.0,87542.0,2.6e-07]
[1743021627467,1.23682278,87543.0,87542.0,2.6e-07]
[1743021629792,1.38180363,87543.0,87542.0,2.6e-07]
[1743021630641,1.38080363,87543.0,87542.0,2.6e-07]
[1743021630987,1.38480363,87543.0,87542.0,2.6e-07]
[1743021631184,1.36690504,87543.0,87542.0,2.6e-07]
[1743021632363,1.36990504,87543.0,87542.0,2.6e-07]
[1743021632766,1.36590504,87543.0,87542.0,2.6e-07]
[1743021633131,1.37090504,87543.0,87542.0,2.6e-07]
[1743021635076,1.37090504,87543.0,87518.0,0.000339]
[1743021635077,0.539947,87519.0,87518.0,0.000339]
[1743021635299,0.539947,87519.0,87518.0,0.00078265]
[1743021636152,0.539947,87519.0,87514.0,2.5e-07]
[1743021636153,0.539958,87515.0,87514.0,2.5e-07]
[1743021636317,0.539958,87515.0,87514.0,0.00044491]
[1743021636686,0.61648888,87515.0,87514.0,0.00044491]
[1743021637281,0.61848888,87515.0,87514.0,0.00044491]
[1743021638114,0.539969,87511.0,87510.0,5.1e-07]
[1743021638322,0.539969,87511.0,87510.0,4.2e-07]
[1743021638430,0.6818503,87511.0,87510.0,4.2e-07]
[1743021638631,0.7599503,87511.0,87510.0,4.2e-07]
[1743021638853,0.78880766,87511.0,87510.0,4.2e-07]
[1743021639423,0.78980766,87511.0,87510.0,4.2e-07]
[1743021639799,0.79580766,87511.0,87510.0,4.2e-07]
[1743021640660,0.79480766,87511.0,87510.0,4.2e-07]
[1743021641139,0.79580766,87511.0,87510.0,4.2e-07]
[1743021641494,0.74032664,87511.0,87510.0,4.2e-07]
[1743021641904,0.7679503,87511.0,87510.0,0.00033962]
[1743021642508,0.7679503,87511.0,87510.0,6.2e-07]
[1743021642722,0.79680766,87511.0,87510.0,6.2e-07]
[1743021642987,0.82180766,87511.0,87510.0,6.2e-07]
[1743021643216,0.87100766,87511.0,87510.0,6.2e-07]
[1743021643408,0.540023,87491.0,87490.0,6.2e-07]
[1743021643621,0.77589124,87491.0,87490.0,6.2e-07]
[1743021643832,0.8035149,87491.0,87490.0,6.2e-07]
[1743021644442,0.8527149,87491.0,87490.0,6.2e-07]
[1743021644946,0.86151551,87491.0,87490.0,6.2e-07]
[1743021645105,0.86651551,87491.0,87490.0,6.2e-07]
[1743021645538,0.76083449,87491.0,87490.0,6.2e-07]
[1743021645963,0.78427989,87491.0,87490.0,6.2e-07]
[1743021646577,0.84705359,87491.0,87490.0,6.2e-07]
[1743021648429,0.78927989,87491.0,87490.0,6.2e-07]
[1743021649505,1.20657989,87491.0,87490.0,6.2e-07]
[1743021649937,1.23270623,87491.0,87490.0,6.2e-07]
[1743021650093,1.25935359,87491.0,87490.0,6.2e-07]
[1743021651298,1.26435359,87491.0,87490.0,6.2e-07]
[1743021652915,1.23657989,87491.0,87490.0,6.2e-07]
[1743021653144,1.26270623,87491.0,87490.0,6.2e-07]
[1743021653348,1.28935359,87491.0,87490.0,6.2e-07]
[1743021654801,0.240054,87480.0,87479.0,6.2e-07]
[1743021655023,0.540054,87480.0,87479.0,6.2e-07]
[1743021655242,0.5928277,87480.0,87479.0,6.2e-07]
[1743021655639,0.6272117,87480.0,87479.0,6.2e-07]
[1743021656008,0.62765635,87480.0,87479.0,6.2e-07]
[1743021656369,1.23508723,87480.0,87479.0,6.2e-07]
[1743021656957,1.23708723,87480.0,87479.0,6.2e-07]
[1743021657300,1.23508723,87480.0,87479.0,6.2e-07]
[1743021657502,1.23308723,87480.0,87479.0,6.2e-07]
[1743021657655,1.25062808,87480.0,87479.0,6.2e-07]
[1743021658012,1.25562808,87480.0,87479.0,6.2e-07]
[1743021658144,1.26062808,87480.0,87479.0,6.2e-07]
[1743021658356,1.25562808,87480.0,87479.0,6.2e-07]
[1743021660184,1.26062808,87480.0,87479.0,6.2e-07]
[1743021660383,0.240117,87457.0,87456.0,0.0003386]
[1743021660697,0.540117,87457.0,87456.0,0.0003386]
[1743021660894,0.5966407,87457.0,87456.0,0.0003386]
[1743021661098,0.540117,87457.0,87456.0,0.0003386]
[1743021662032,0.540123,87455.0,87454.0,6e-07]
[1743021662265,0.61665388,87455.0,87454.0,6e-07]
[1743021662475,0.64705124,87455.0,87454.0,6e-07]
[1743021662787,0.64278022,87455.0,87454.0,6e-07]
[1743021662987,0.61665388,87455.0,87454.0,6e-07]
[1743021663432,0.62816328,87455.0,87454.0,6e-07]
[1743021664723,0.63274928,87455.0,87454.0,6e-07]
[1743021665633,0.64137715,87455.0,87454.0,6e-07]
[1743021666270,0.67177451,87455.0,87454.0,6e-07]
[1743021667015,0.64137715,87455.0,87454.0,6e-07]
[1743021669486,0.64337715,87455.0,87454.0,6e-07]
[1743021670206,0.64537715,87455.0,87454.0,6e-07]
[1743021670776,0.64137715,87455.0,87454.0,6e-07]
[1743021671120,0.64637715,87455.0,87454.0,6e-07]
[1743021671968,0.77689715,87455.0,87454.0,6e-07]
[1743021673174,0.240133,87451.0,87450.0,4e-07]
[1743021673405,0.540133,87451.0,87450.0,4e-07]
[1743021673610,0.540188,87431.0,87430.0,2e-07]
[1743021674623,0.54063238,87431.0,87430.0,2e-07]
[1743021676521,0.54063238,87431.0,87430.0,0.0791002]
[1743021677034,0.54263238,87431.0,87430.0,0.0791002]
[1743021677389,0.54363238,87431.0,87430.0,0.0791002]
[1743021677599,0.54163238,87431.0,87430.0,0.0791002]
[1743021677759,0.54363238,87431.0,87430.0,0.0791002]
[1743021677961,0.54563238,87431.0,87430.0,0.0791002]
[1743021679041,0.54563238,87431.0,87430.0,0.07890504]
[1743021680085,0.54263238,87431.0,87430.0,0.07890504]
[1743021680493,0.54363238,87431.0,87430.0,0.07890504]
[1743021681139,0.54263238,87431.0,87430.0,0.07890504]
[1743021681561,0.00244438,87431.0,87430.0,0.07890504]
[1743021681966,0.00244438,87431.0,87430.0,0.30765904]
[1743021682737,0.00344438,87431.0,87430.0,0.33078616]
[1743021684000,0.00144438,87431.0,87430.0,0.33078616]
[1743021684178,0.00244438,87431.0,87430.0,0.33078616]
[1743021684375,0.00144438,87431.0,87430.0,0.33078616]
[1743021684562,0.00044438,87431.0,87430.0,0.33078616]
[1743021685448,0.00044438,87431.0,87430.0,0.31934916]
[1743021685949,0.00044438,87431.0,87430.0,0.33078616]
[1743021686423,0.00044438,87431.0,87430.0,0.46130616]
[1743021687418,3.8e-07,87431.0,87430.0,0.63520465]
[1743021687748,0.0001697,87456.0,87455.0,0.369923]
[1743021687951,0.0001697,87456.0,87455.0,0.500443]
[1743021688809,0.0001697,87456.0,87455.0,0.499443]
[1743021690479,0.0001697,87456.0,87455.0,0.52507002]
[1743021690690,7e-07,87456.0,87455.0,0.76812615]
[1743021690910,7e-07,87456.0,87455.0,0.77112615]
[1743021691525,7e-07,87456.0,87455.0,0.76812615]
[1743021692076,7e-07,87456.0,87455.0,0.77512615]
[1743021692395,7e-07,87456.0,87455.0,0.77112615]
[1743021692830,7e-07,87456.0,87455.0,0.77512615]
[1743021693043,7e-07,87456.0,87455.0,0.53034851]
[1743021693247,7e-07,87456.0,87455.0,1.10963602]
[1743021693452,7e-07,87456.0,87455.0,1.098443]
[1743021693601,7e-07,87456.0,87455.0,1.101443]
[1743021693806,7e-07,87456.0,87455.0,1.098443]
[1743021694206,7e-07,87456.0,87455.0,1.101443]
[1743021694367,7e-07,87456.0,87455.0,1.094443]
[1743021694811,7e-07,87456.0,87455.0,1.102443]
[1743021695272,7e-07,87456.0,87455.0,1.097443]
[1743021695729,7e-07,87456.0,87455.0,1.101443]
[1743021703346,7e-07,87456.0,87455.0,1.1017824]
[1743021704535,7e-07,87456.0,87455.0,1.0206824]
[1743021704731,7e-07,87456.0,87455.0,0.9719824]
[1743021709494,7e-07,87456.0,87455.0,0.9719424]
[1743021710076,7e-07,87456.0,87455.0,0.3779024]
[1743021714819,7e-07,87456.0,87455.0,0.2474624]
[1743021715038,7e-07,87456.0,87455.0,0.3778624]
[1743021727478,0.3157207,87456.0,87455.0,0.0073394]
[1743021728201,0.3157207,87456.0,87455.0,0.0033394]
[1743021728656,0.3157207,87456.0,87455.0,0.0003394]
[1743021729242,0.3157207,87456.0,87455.0,0.0023394]
[1743021729931,0.3157207,87456.0,87455.0,0.0053394]
[1743021730543,0.3157207,87456.0,87455.0,0.0023394]
[1743021730890,0.3157207,87456.0,87455.0,0.0053394]
[1743021733372,0.3157207,87456.0,87455.0,0.0023394]
[1743021733528,0.3157207,87456.0,87455.0,0.0003394]
[1743021733865,0.3157207,87456.0,87455.0,0.0023394]
[1743021735447,0.2401207,87456.0,87455.0,0.0023394]
[1743021741895,0.72606377,87456.0,87455.0,0.0023394]
[1743021742103,0.77276377,87456.0,87455.0,0.0023394]
[1743021742477,0.6697207,87456.0,87455.0,0.0023394]
[1743021746730,0.6810718,87456.0,87455.0,0.0023394]
[1743021747699,0.6810718,87456.0,87455.0,0.0013394]
[1743021748126,0.6820718,87456.0,87455.0,0.0013394]
[1743021748506,0.6820718,87456.0,87455.0,0.0003394]
[1743021748706,0.79632944,87456.0,87455.0,0.0003394]
[1743021748939,0.79732944,87456.0,87455.0,0.0003394]
[1743021750446,0.82067065,87456.0,87455.0,0.0003394]
[1743021751247,0.6717207,87456.0,87455.0,0.0003394]
[1743021752140,0.5421207,87456.0,87455.0,0.0003394]
[1743021776182,0.6229207,87456.0,87455.0,0.0003394]
[1743021779440,0.5421207,87456.0,87455.0,0.0003394]
[1743021782740,0.0020007,87456.0,87455.0,0.0768394]
[1743021782965,0.0020007,87456.0,87455.0,0.31924909]
[1743021783175,0.0020007,87456.0,87455.0,0.3169624]
[1743021785528,7e-07,87456.0,87455.0,0.3169624]
[1743021785710,7e-07,87456.0,87455.0,0.3179624]
[1743021785936,7e-07,87456.0,87455.0,0.3189624]
[1743021786207,7e-07,87456.0,87455.0,0.34167803]
[1743021792940,0.228661,87466.0,87463.0,0.228667]
[1743021793502,0.228661,87466.0,87460.0,0.011433]
[1743021793503,0.228663,87465.0,87462.0,0.22867]
[1743021793741,0.228666,87464.0,87461.0,0.228673]
[1743021793912,0.228663,87465.0,87462.0,0.228669]
[1743021794118,0.228663,87465.0,87462.0,0.22871977]
[1743021795430,0.228663,87465.0,87462.0,0.23989504]
[1743021795842,0.229663,87465.0,87462.0,0.23989504]
[1743021796005,0.001,87465.0,87463.0,0.228668]
[1743021796586,0.002,87465.0,87463.0,0.228668]
[1743021796815,0.003,87465.0,87463.0,0.228668]
[1743021797225,0.001,87465.0,87463.0,0.228668]
[1743021797573,0.002,87465.0,87464.0,0.228665]
[1743021797725,0.0021695,87465.0,87464.0,0.228665]
[1743021797923,0.0021695,87465.0,87464.0,0.3121083]
[1743021798124,0.0011695,87465.0,87464.0,0.58412915]
[1743021798431,0.0011695,87465.0,87464.0,0.69838679]
[1743021799191,0.0001695,87465.0,87464.0,0.69838679]
[1743021799512,0.0011695,87465.0,87464.0,0.69838679]
[1743021799713,5e-07,87465.0,87464.0,0.99838679]
[1743021800115,0.0001696,87510.0,87498.0,0.011428]
[1743021800251,0.228547,87509.0,87501.0,0.011428]
[1743021800450,0.0001696,87510.0,87507.0,0.228551]
[1743021800679,0.2287146,87510.0,87507.0,0.228551]
[1743021800882,0.0001696,87510.0,87509.0,0.228547]
[1743021801107,0.0001696,87510.0,87508.0,0.228549]
[1743021801307,0.0001696,87510.0,87509.0,0.011427]
[1743021801720,0.0001696,87510.0,87509.0,0.239974]
[1743021802137,0.0021696,87510.0,87509.0,0.228547]
[1743021802361,0.0021696,87510.0,87508.0,0.22859977]
[1743021803119,0.0021696,87510.0,87509.0,0.228547]
[1743021804234,0.0041696,87510.0,87508.0,0.22860077]
[1743021804651,0.2327166,87510.0,87508.0,5.077e-05]
[1743021804853,0.228547,87509.0,87508.0,5.077e-05]
[1743021805679,0.239974,87509.0,87508.0,5.077e-05]
[1743021806174,0.240974,87509.0,87508.0,5.077e-05]
[1743021806551,0.33822016,87509.0,87508.0,5.077e-05]
[1743021806766,0.364374,87509.0,87508.0,5.077e-05]
[1743021806958,0.240974,87509.0,87508.0,5.077e-05]
[1743021807658,0.322074,87509.0,87508.0,5.077e-05]
[1743021809147,0.622074,87509.0,87508.0,5.077e-05]
[1743021809345,0.668974,87509.0,87508.0,5.077e-05]
[1743021809842,0.6691435,87509.0,87508.0,5.077e-05]
[1743021810059,0.6701435,87509.0,87508.0,5.077e-05]
[1743021810868,0.5421435,87509.0,87508.0,5.077e-05]
[1743021811077,0.0021695,87509.0,87508.0,5.077e-05]
[1743021811332,0.0021695,87509.0,87508.0,0.24002777]
[1743021811711,0.0021695,87509.0,87508.0,5.077e-05]
[1743021812939,0.2307165,87509.0,87508.0,5.077e-05]
[1743021813340,0.0021695,87509.0,87508.0,0.22860077]